[Event "NJSK 2026 Jeugd C"]
[Site "Helmond, Netherlands"]
[Date "2026.04.27"]
[Round "3.3"]
[White "Pathak, Raghav"]
[Black "Sosef, Noah"]
[Result "1-0"]
[TimeControl "90min/40moves + 30sec/move"]
[WhiteTitle "-"]
[BlackTitle "-"]
[WhiteFideId "1084259"]
[BlackFideId "40107060"]
[WhiteElo "2091"]
[BlackElo "2012"]

1. e4 {[%clk 01:30:59]} c6 {[%clk 01:30:56]} {[%emt 00:00:04]} 2. Nf3 {[%clk
01:31:25]} {[%emt 00:00:04]} d5 {[%clk 01:31:20]} {[%emt 00:00:07]} 3. Nc3
{[%clk 01:31:52]} {[%emt 00:00:02]} Bg4 {[%clk 01:31:41]} {[%emt 00:00:08]} 4.
h3 {[%clk 01:31:14]} {[%emt 00:01:09]} Bxf3 {[%clk 01:32:05]} {[%emt 00:00:07]}
5. Qxf3 {[%clk 01:31:39]} {[%emt 00:00:04]} e6 {[%clk 01:32:26]} {[%emt
00:00:10]} 6. d4 {[%clk 01:31:45]} {[%emt 00:00:23]} Nf6 {[%clk 01:32:12]}
{[%emt 00:00:45]} 7. e5 {[%clk 01:29:11]} {[%emt 00:03:04]} Nfd7 {[%clk
01:32:17]} {[%emt 00:00:25]} 8. Ne2 {[%clk 01:28:39]} {[%emt 00:01:02]} c5
{[%clk 01:26:58]} {[%emt 00:05:49]} 9. c3 {[%clk 01:29:03]} {[%emt 00:00:05]}
Nc6 {[%clk 01:26:54]} {[%emt 00:00:34]} 10. a3 {[%clk 01:29:02]} {[%emt
00:00:32]} cxd4 {[%clk 01:17:12]} {[%emt 00:10:12]} 11. cxd4 {[%clk 01:29:17]}
{[%emt 00:00:13]} Qb6 {[%clk 01:16:37]} {[%emt 00:01:06]} 12. Qd3 {[%clk
01:22:57]} {[%emt 00:06:51]} Be7 {[%clk 00:56:43]} {[%emt 00:20:23]} 13. b4
{[%clk 01:16:48]} {[%emt 00:06:39]} Rc8 {[%clk 00:48:52]} {[%emt 00:08:21]} 14.
Be3 {[%clk 01:15:39]} {[%emt 00:01:39]} Bxb4+ {[%clk 00:34:45]} {[%emt
00:14:38]} 15. axb4 {[%clk 01:13:52]} {[%emt 00:02:16]} Nxb4 {[%clk 00:33:59]}
{[%emt 00:01:16]} 16. Qb1 {[%clk 01:14:16]} {[%emt 00:00:06]} Nc2+ {[%clk
00:34:23]} {[%emt 00:00:06]} 17. Kd2 {[%clk 01:14:35]} {[%emt 00:00:11]} Nxa1
{[%clk 00:34:42]} {[%emt 00:00:11]} 18. Qxa1 {[%clk 01:15:02]} {[%emt
00:00:03]} Qb4+ {[%clk 00:33:24]} {[%emt 00:01:48]} 19. Nc3 {[%clk 01:15:16]}
{[%emt 00:00:15]} O-O {[%clk 00:28:24]} {[%emt 00:05:31]} 20. Bd3 {[%clk
01:15:06]} {[%emt 00:00:39]} Nxe5 {[%clk 00:25:40]} {[%emt 00:03:15]} 21. Rb1
{[%clk 01:12:33]} {[%emt 00:03:03]} Nc4+ {[%clk 00:25:52]} {[%emt 00:00:18]} 22.
Ke2 {[%clk 01:11:16]} {[%emt 00:01:47]} Qd6 {[%clk 00:16:38]} {[%emt 00:09:43]}
23. Nb5 {[%clk 01:10:40]} {[%emt 00:01:07]} Qh2 {[%clk 00:13:29]} {[%emt
00:03:38]} 24. Rh1 {[%clk 01:02:34]} {[%emt 00:08:36]} Qxg2 {[%clk 00:13:07]}
{[%emt 00:00:52]} 25. Bf4 {[%clk 01:02:52]} {[%emt 00:00:13]} f5 {[%clk
00:11:58]} {[%emt 00:01:39]} 26. Nd6 {[%clk 00:40:40]} {[%emt 00:22:42]} Rc6
{[%clk 00:05:02]} {[%emt 00:07:26]} 27. Bxc4 {[%clk 00:41:02]} {[%emt
00:00:08]} dxc4 {[%clk 00:05:14]} {[%emt 00:00:18]} 28. Rg1 {[%clk 00:41:23]}
{[%emt 00:00:09]} Qxh3 {[%clk 00:04:18]} {[%emt 00:01:26]} 29. f3 {[%clk
00:41:10]} {[%emt 00:00:43]} Ra6 {[%clk 00:03:50]} {[%emt 00:00:58]} 30. Rxg7+
{[%clk 00:41:16]} {[%emt 00:00:23]} Kh8 {[%clk 00:03:22]} {[%emt 00:00:58]} 31.
Be5 {[%clk 00:39:53]} {[%emt 00:01:54]} Rf6 {[%clk 00:02:45]} {[%emt 00:01:07]}
32. Bxf6 {[%clk 00:40:01]} {[%emt 00:00:22]} Qh2+ {[%clk 00:02:56]} {[%emt
00:00:19]} 33. Rg2# {[%clk 00:40:22]} {[%emt 00:00:08]} 1-0

[Event "NJSK 2026 Jeugd C"]
[Site "Helmond, Netherlands"]
[Date "2026.04.27"]
[Round "3.4"]
[White "Thijssen, Freek"]
[Black "Leenen, Boyd"]
[Result "1-0"]
[TimeControl "90min/40moves + 30sec/move"]
[WhiteTitle "-"]
[BlackTitle "-"]
[WhiteFideId "1091840"]
[BlackFideId "1083937"]
[WhiteElo "2159"]
[BlackElo "2205"]

1. e4 {[%clk 01:30:57]} {[%emt 00:00:02]} e5 {[%clk 01:30:52]} {[%emt
00:00:08]} 2. Nf3 {[%clk 01:31:22]} {[%emt 00:00:05]} Nc6 {[%clk 01:31:20]}
{[%emt 00:00:03]} 3. Bc4 {[%clk 01:31:44]} {[%emt 00:00:07]} Nf6 {[%clk
01:31:47]} {[%emt 00:00:04]} 4. d3 {[%clk 01:30:33]} {[%emt 00:01:40]} Bc5
{[%clk 01:32:08]} {[%emt 00:00:10]} 5. c3 {[%clk 01:30:46]} {[%emt 00:00:16]}
d6 {[%clk 01:32:35]} {[%emt 00:00:04]} 6. O-O {[%clk 01:31:08]} {[%emt
00:00:08]} a5 {[%clk 01:33:04]} {[%emt 00:00:01]} 7. Re1 {[%clk 01:31:21]}
{[%emt 00:00:17]} O-O {[%clk 01:33:27]} {[%emt 00:00:07]} 8. h3 {[%clk
01:31:37]} {[%emt 00:00:14]} Ba7 {[%clk 01:33:52]} {[%emt 00:00:05]} 9. Nbd2
{[%clk 01:31:39]} {[%emt 00:00:27]} Be6 {[%clk 01:34:07]} {[%emt 00:00:15]} 10.
Bb5 {[%clk 01:31:41]} {[%emt 00:00:28]} Ne7 {[%clk 01:34:33]} {[%emt 00:00:05]}
11. d4 {[%clk 01:31:50]} {[%emt 00:00:20]} Ng6 {[%clk 01:34:59]} {[%emt
00:00:04]} 12. Ba4 {[%clk 01:31:12]} {[%emt 00:01:08]} c6 {[%clk 01:34:27]}
{[%emt 00:01:02]} 13. Bc2 {[%clk 01:30:10]} {[%emt 00:01:32]} Nh5 {[%clk
01:34:41]} {[%emt 00:00:17]} 14. Nf1 {[%clk 01:30:24]} {[%emt 00:00:15]} Nhf4
{[%clk 01:35:07]} {[%emt 00:00:05]} 15. Ng3 {[%clk 01:30:44]} {[%emt 00:00:09]}
f6 {[%clk 01:23:18]} {[%emt 00:12:20]} 16. Nf5 {[%clk 01:31:02]} {[%emt
00:00:11]} Qd7 {[%clk 01:21:57]} {[%emt 00:01:52]} 17. N5h4 {[%clk 01:28:23]}
{[%emt 00:03:07]} Rad8 {[%clk 01:00:20]} {[%emt 00:22:08]} 18. Nxg6 {[%clk
01:28:32]} {[%emt 00:00:21]} Nxg6 {[%clk 01:00:41]} {[%emt 00:00:09]} 19. Be3
{[%clk 01:28:28]} {[%emt 00:00:34]} exd4 {[%clk 00:37:02]} {[%emt 00:24:10]} 20.
cxd4 {[%clk 01:20:40]} {[%emt 00:08:17]} d5 {[%clk 00:37:12]} {[%emt 00:00:20]}
21. e5 {[%clk 01:14:56]} {[%emt 00:06:14]} Bb8 {[%clk 00:28:30]} {[%emt
00:09:13]} 22. Bd2 {[%clk 01:06:34]} {[%emt 00:08:51]} Bc7 {[%clk 00:26:35]}
{[%emt 00:02:25]} 23. b4 {[%clk 00:55:09]} {[%emt 00:11:56]} axb4 {[%clk
00:23:01]} {[%emt 00:04:04]} 24. Bxb4 {[%clk 00:53:14]} {[%emt 00:02:25]} Rfe8
{[%clk 00:22:51]} {[%emt 00:00:39]} 25. Qd3 {[%clk 00:51:19]} {[%emt 00:02:25]}
fxe5 {[%clk 00:07:57]} {[%emt 00:15:25]} 26. Nxe5 {[%clk 00:45:17]} {[%emt
00:06:32]} Bxe5 {[%clk 00:08:22]} {[%emt 00:00:04]} 27. dxe5 {[%clk 00:45:33]}
{[%emt 00:00:14]} b6 {[%clk 00:05:27]} {[%emt 00:03:26]} 28. Bd6 {[%clk
00:44:22]} {[%emt 00:01:41]} Ra8 {[%clk 00:03:04]} {[%emt 00:02:53]} 29. f4
{[%clk 00:44:14]} {[%emt 00:00:37]} Rf8 {[%clk 00:02:20]} {[%emt 00:01:15]} 30.
Bxf8 {[%clk 00:22:02]} {[%emt 00:22:42]} Rxf8 {[%clk 00:02:49]} {[%emt
00:00:01]} 31. h4 {[%clk 00:16:03]} {[%emt 00:06:29]} Bf5 {[%clk 00:02:32]}
{[%emt 00:00:47]} 32. Qd2 {[%clk 00:16:25]} {[%emt 00:00:08]} Bxc2 {[%clk
00:02:46]} {[%emt 00:00:16]} 33. e6 {[%clk 00:13:18]} {[%emt 00:03:37]} Qd6
{[%clk 00:02:34]} {[%emt 00:00:42]} 34. Qxc2 {[%clk 00:13:26]} {[%emt
00:00:22]} Rxf4 {[%clk 00:03:01]} {[%emt 00:00:03]} 35. h5 {[%clk 00:07:37]}
{[%emt 00:06:20]} Ne5 {[%clk 00:02:25]} {[%emt 00:01:06]} 36. Qc3 {[%clk
00:05:17]} {[%emt 00:02:50]} d4 {[%clk 00:01:47]} {[%emt 00:01:07]} 37. Qb3
{[%clk 00:04:52]} {[%emt 00:00:54]} Kf8 {[%clk 00:01:14]} {[%emt 00:01:04]} 38.
Qxb6 {[%clk 00:04:01]} {[%emt 00:01:21]} Ke7 {[%clk 00:01:44]} {[%emt
00:00:01]} 39. Rf1 {[%clk 00:03:35]} {[%emt 00:00:56]} Rxf1+ {[%emt 00:00:26]}
40. Rxf1 {[%clk 00:04:02]} d3 {[%clk 00:01:34]} {[%emt 00:00:46]} 41. Qf2
{[%clk 00:01:08]} {[%emt 00:03:24]} Kxe6 {[%clk 00:01:52]} {[%emt 00:00:11]} 42.
h6 {[%clk 00:01:01]} {[%emt 00:00:38]} gxh6 {[%clk 00:02:08]} {[%emt 00:00:15]}
43. Qf6+ {[%clk 00:00:43]} {[%emt 00:00:47]} Kd5 {[%clk 00:02:37]} {[%emt
00:00:01]} 44. Qxd6+ {[%clk 00:00:37]} {[%emt 00:00:36]} Kxd6 {[%clk 00:03:07]}
45. Kf2 {[%clk 00:00:59]} {[%emt 00:00:07]} c5 {[%clk 00:03:24]} {[%emt
00:00:13]} 46. Ke3 {[%clk 00:01:22]} {[%emt 00:00:07]} Kd5 {[%clk 00:03:31]}
{[%emt 00:00:23]} 47. Rf8 {[%clk 00:01:04]} {[%emt 00:00:47]} c4 {[%clk
00:03:51]} {[%emt 00:00:11]} 48. Kd2 {[%clk 00:00:56]} {[%emt 00:00:39]} Ng4
{[%clk 00:01:50]} {[%emt 00:02:30]} 49. a4 {[%clk 00:01:10]} {[%emt 00:00:16]}
Kc5 {[%clk 00:02:02]} {[%emt 00:00:18]} 50. a5 {[%clk 00:00:52]} {[%emt
00:00:49]} Kb5 {[%clk 00:02:20]} {[%emt 00:00:12]} 51. Rf4 {[%clk 00:00:59]}
{[%emt 00:00:22]} c3+ {[%clk 00:02:14]} {[%emt 00:00:36]} 52. Kxc3 {[%clk
00:00:52]} {[%emt 00:00:37]} Ne3 {[%clk 00:02:44]} {[%emt 00:00:01]} 53. Kxd3
{[%clk 00:00:53]} {[%emt 00:00:29]} Nxg2 {[%clk 00:03:13]} {[%emt 00:00:01]} 54.
Re4 {[%clk 00:01:04]} {[%emt 00:00:18]} h5 {[%clk 00:03:34]} {[%emt 00:00:09]}
55. Ke2 {[%clk 00:01:18]} {[%emt 00:00:16]} h4 {[%clk 00:04:03]} {[%emt
00:00:01]} 56. Kf3 {[%clk 00:01:38]} {[%emt 00:00:09]} h3 {[%clk 00:04:30]}
{[%emt 00:00:03]} 57. Kg3 {[%clk 00:02:03]} {[%emt 00:00:05]} 1-0

[Event "NJSK 2026 Jeugd C"]
[Site "Helmond, Netherlands"]
[Date "2026.04.27"]
[Round "3.5"]
[White "Botter, Simon"]
[Black "Zhang, Xiheng"]
[Result "1/2-1/2"]
[TimeControl "90min/40moves + 30sec/move"]
[WhiteTitle "-"]
[BlackTitle "-"]
[WhiteFideId "40107698"]
[BlackFideId "40102386"]
[WhiteElo "1988"]
[BlackElo "2135"]

1. Nf3 {[%clk 01:30:56]} {[%emt 00:00:04]} Nf6 {[%clk 01:30:56]} {[%emt
00:00:04]} 2. g3 {[%clk 01:31:11]} {[%emt 00:00:15]} g6 {[%clk 01:31:20]}
{[%emt 00:00:06]} 3. Bg2 {[%clk 01:31:37]} {[%emt 00:00:05]} Bg7 {[%clk
01:31:46]} {[%emt 00:00:04]} 4. O-O {[%clk 01:32:00]} {[%emt 00:00:07]} O-O
{[%clk 01:32:11]} {[%emt 00:00:04]} 5. c4 {[%clk 01:32:26]} {[%emt 00:00:05]}
d6 {[%clk 01:32:36]} {[%emt 00:00:06]} 6. Nc3 {[%clk 01:32:50]} {[%emt
00:00:05]} Nc6 {[%clk 01:32:50]} {[%emt 00:00:15]} 7. d3 {[%clk 01:33:13]}
{[%emt 00:00:08]} e5 {[%clk 01:32:40]} {[%emt 00:00:40]} 8. Rb1 {[%clk
01:33:38]} {[%emt 00:00:05]} a5 {[%clk 01:32:04]} {[%emt 00:01:05]} 9. a3
{[%clk 01:34:04]} {[%emt 00:00:05]} Nd4 {[%clk 01:28:50]} {[%emt 00:03:46]} 10.
b4 {[%clk 01:31:56]} {[%emt 00:02:35]} axb4 {[%clk 01:28:37]} {[%emt 00:00:43]}
11. axb4 {[%clk 01:32:18]} {[%emt 00:00:07]} Nxf3+ {[%clk 01:28:03]} {[%emt
00:01:05]} 12. Bxf3 {[%clk 01:32:33]} {[%emt 00:00:14]} c6 {[%clk 01:28:23]}
{[%emt 00:00:11]} 13. Qb3 {[%clk 01:32:39]} {[%emt 00:00:23]} Be6 {[%clk
01:27:14]} {[%emt 00:01:39]} 14. b5 {[%clk 01:27:12]} {[%emt 00:05:57]} d5
{[%clk 01:22:32]} {[%emt 00:05:12]} 15. Rd1 {[%clk 01:20:49]} {[%emt 00:06:54]}
h6 {[%clk 01:01:31]} {[%emt 00:21:31]} 16. Bg2 {[%clk 01:04:41]} {[%emt
00:16:37]} Qd7 {[%clk 00:54:46]} {[%emt 00:07:15]} 17. Na4 {[%clk 01:01:35]}
{[%emt 00:03:36]} Qd8 {[%clk 00:45:43]} {[%emt 00:09:33]} 18. Nc5 {[%clk
00:55:09]} {[%emt 00:06:55]} Bc8 {[%clk 00:41:36]} {[%emt 00:04:38]} 19. bxc6
{[%clk 00:44:45]} {[%emt 00:10:54]} bxc6 {[%clk 00:41:46]} {[%emt 00:00:20]} 20.
Qb6 {[%clk 00:44:16]} {[%emt 00:00:59]} Qd6 {[%clk 00:29:11]} {[%emt 00:13:04]}
21. f4 {[%clk 00:34:43]} {[%emt 00:10:03]} Ng4 {[%clk 00:21:07]} {[%emt
00:08:36]} 22. cxd5 {[%clk 00:31:38]} {[%emt 00:03:35]} exf4 {[%clk 00:19:17]}
{[%emt 00:02:20]} 23. Ne4 {[%clk 00:31:46]} {[%emt 00:00:21]} Qe5 {[%clk
00:14:19]} {[%emt 00:05:28]} 24. Bxf4 {[%clk 00:27:11]} {[%emt 00:05:05]} Qd4+
{[%clk 00:13:42]} {[%emt 00:01:08]} 25. e3 {[%clk 00:27:11]} {[%emt 00:00:29]}
Qxb6 {[%clk 00:13:42]} {[%emt 00:00:30]} 26. Rxb6 {[%clk 00:27:36]} {[%emt
00:00:05]} cxd5 {[%clk 00:13:23]} {[%emt 00:00:49]} 27. Nf2 {[%clk 00:26:29]}
{[%emt 00:01:38]} Nxf2 {[%clk 00:11:59]} {[%emt 00:01:54]} 28. Kxf2 {[%clk
00:26:45]} {[%emt 00:00:13]} Ra2+ {[%clk 00:11:15]} {[%emt 00:01:14]} 29. Kg1
{[%clk 00:26:20]} {[%emt 00:00:55]} Be6 {[%clk 00:10:34]} {[%emt 00:01:11]} 30.
d4 {[%clk 00:22:45]} {[%emt 00:04:06]} Rc8 {[%clk 00:08:13]} {[%emt 00:02:51]}
31. Rb8 {[%clk 00:22:39]} {[%emt 00:00:35]} Rxb8 {[%clk 00:07:03]} {[%emt
00:01:40]} 32. Bxb8 {[%clk 00:23:02]} {[%emt 00:00:06]} Rb2 {[%clk 00:05:02]}
{[%emt 00:02:32]} 33. Bd6 {[%clk 00:21:57]} {[%emt 00:01:35]} Bf8 {[%clk
00:04:43]} {[%emt 00:00:49]} 34. Bxf8 {[%clk 00:22:01]} {[%emt 00:00:26]} Kxf8
{[%clk 00:05:10]} {[%emt 00:00:04]} 35. h3 {[%clk 00:18:27]} {[%emt 00:04:03]}
h5 {[%clk 00:04:35]} {[%emt 00:01:05]} 36. h4 {[%clk 00:17:39]} {[%emt
00:01:17]} Ke7 {[%clk 00:04:41]} {[%emt 00:00:24]} 37. Bf3 {[%clk 00:17:39]}
{[%emt 00:00:29]} Rb3 {[%clk 00:04:27]} {[%emt 00:00:46]} 38. Re1 {[%clk
00:17:58]} {[%emt 00:00:10]} Rb2 {[%clk 00:04:39]} {[%emt 00:00:19]} 39. Re2
{[%clk 00:17:56]} {[%emt 00:00:32]} Rb1+ {[%clk 00:04:22]} {[%emt 00:00:47]} 40.
Kg2 {[%clk 00:17:21]} {[%emt 00:01:04]} Kd6 {[%clk 00:04:15]} {[%emt 00:00:38]}
41. Ra2 {[%clk 00:16:36]} {[%emt 00:01:15]} Kd7 {[%clk 00:03:17]} {[%emt
00:01:28]} 42. Kf2 {[%clk 00:16:09]} {[%emt 00:00:57]} Kd6 {[%clk 00:02:53]}
{[%emt 00:00:54]} 43. e4 {[%clk 00:14:07]} {[%emt 00:02:31]} dxe4 {[%clk
00:02:58]} {[%emt 00:00:26]} 44. Ra6+ {[%clk 00:13:54]} {[%emt 00:00:43]} Kd5
{[%clk 00:02:36]} {[%emt 00:00:52]} 45. Ra5+ {[%clk 00:14:16]} {[%emt
00:00:08]} Kxd4 {[%clk 00:02:42]} {[%emt 00:00:24]} 46. Ra4+ {[%clk 00:14:40]}
{[%emt 00:00:06]} Ke5 {[%clk 00:02:17]} {[%emt 00:00:55]} 47. Rxe4+ {[%clk
00:14:35]} {[%emt 00:00:35]} Kf6 {[%clk 00:02:38]} {[%emt 00:00:09]} 48. Re1
{[%clk 00:14:09]} {[%emt 00:00:56]} Rb2+ {[%clk 00:02:10]} {[%emt 00:00:58]} 49.
Re2 {[%clk 00:14:33]} {[%emt 00:00:06]} Rb3 {[%clk 00:01:57]} {[%emt 00:00:43]}
50. Re3 {[%clk 00:14:59]} {[%emt 00:00:04]} Rb2+ {[%clk 00:01:46]} {[%emt
00:00:41]} 51. Re2 {[%clk 00:15:24]} {[%emt 00:00:04]} Rxe2+ {[%clk 00:01:49]}
{[%emt 00:00:27]} 52. Bxe2 {[%clk 00:15:46]} {[%emt 00:00:08]} Bg4 {[%clk
00:01:55]} {[%emt 00:00:25]} 53. Bc4 {[%clk 00:16:04]} {[%emt 00:00:12]} Be6
{[%clk 00:02:11]} {[%emt 00:00:14]} 54. Be2 {[%clk 00:16:30]} {[%emt 00:00:05]}
Ke5 {[%clk 00:02:39]} {[%emt 00:00:02]} 55. Ke3 {[%clk 00:16:51]} {[%emt
00:00:08]} Bg4 {[%clk 00:02:59]} {[%emt 00:00:10]} 56. Bc4 {[%clk 00:17:15]}
{[%emt 00:00:06]} f6 {[%clk 00:03:27]} {[%emt 00:00:03]} 57. Ba6 {[%clk
00:17:28]} {[%emt 00:00:16]} g5 {[%clk 00:03:38]} {[%emt 00:00:20]} 58. hxg5
{[%clk 00:17:53]} {[%emt 00:00:04]} fxg5 {[%clk 00:04:01]} {[%emt 00:00:07]} 59.
Bb7 {[%clk 00:18:13]} {[%emt 00:00:09]} Bf5 {[%clk 00:04:06]} {[%emt 00:00:26]}
60. Bf3 {[%clk 00:18:36]} {[%emt 00:00:06]} h4 {[%clk 00:04:26]} {[%emt
00:00:11]} 61. gxh4 {[%clk 00:19:01]} {[%emt 00:00:05]} gxh4 {[%clk 00:04:51]}
{[%emt 00:00:03]} 62. Bg2 {[%clk 00:19:27]} {[%emt 00:00:05]} h3 {[%clk
00:05:16]} {[%emt 00:00:06]} 63. Bxh3 {[%clk 00:19:54]} {[%emt 00:00:03]} Bxh3
{[%clk 00:05:40]} {[%emt 00:00:05]} 1/2-1/2

[Event "NJSK 2026 Jeugd C"]
[Site "Helmond, Netherlands"]
[Date "2026.04.27"]
[Round "3.6"]
[White "Lenting, Roan"]
[Black "Omnes, Tiago"]
[Result "1-0"]
[TimeControl "90min/40moves + 30sec/move"]
[WhiteTitle "-"]
[BlackTitle "-"]
[WhiteFideId "1085905"]
[BlackFideId "1091867"]
[WhiteElo "1986"]
[BlackElo "1990"]

1. e4 {[%clk 01:30:58]} {[%emt 00:00:02]} e5 {[%clk 01:30:56]} {[%emt
00:00:05]} 2. Nf3 {[%clk 01:31:23]} {[%emt 00:00:04]} Nc6 {[%clk 01:31:22]}
{[%emt 00:00:04]} 3. Bb5 {[%clk 01:31:48]} {[%emt 00:00:05]} a6 {[%clk
01:31:48]} {[%emt 00:00:04]} 4. Ba4 {[%clk 01:32:13]} {[%emt 00:00:06]} Nf6
{[%clk 01:32:14]} {[%emt 00:00:04]} 5. O-O {[%clk 01:32:38]} {[%emt 00:00:05]}
Be7 {[%clk 01:32:40]} {[%emt 00:00:04]} 6. Re1 {[%clk 01:33:02]} {[%emt
00:00:05]} b5 {[%clk 01:33:06]} {[%emt 00:00:04]} 7. Bb3 {[%clk 01:33:27]}
{[%emt 00:00:05]} O-O {[%clk 01:33:30]} {[%emt 00:00:05]} 8. h3 {[%clk
01:33:54]} {[%emt 00:00:04]} Bb7 {[%clk 01:33:43]} {[%emt 00:00:17]} 9. c3
{[%clk 01:32:47]} {[%emt 00:01:38]} d6 {[%clk 01:33:52]} {[%emt 00:00:20]} 10.
d4 {[%clk 01:32:13]} {[%emt 00:01:04]} Re8 {[%clk 01:33:27]} {[%emt 00:00:56]}
11. Nbd2 {[%clk 01:31:44]} {[%emt 00:00:59]} Bf8 {[%clk 01:31:42]} {[%emt
00:02:15]} 12. Bc2 {[%clk 01:28:20]} {[%emt 00:03:53]} Qd7 {[%clk 01:28:42]}
{[%emt 00:03:30]} 13. a4 {[%clk 01:16:13]} {[%emt 00:12:38]} Rad8 {[%clk
01:19:48]} {[%emt 00:09:24]} 14. axb5 {[%clk 01:14:00]} {[%emt 00:02:42]} axb5
{[%clk 01:20:08]} {[%emt 00:00:10]} 15. d5 {[%clk 01:12:00]} {[%emt 00:02:30]}
Ne7 {[%clk 01:20:11]} {[%emt 00:00:26]} 16. b3 {[%clk 01:10:22]} {[%emt
00:02:09]} c5 {[%clk 01:14:55]} {[%emt 00:05:46]} 17. b4 {[%clk 01:05:43]}
{[%emt 00:05:10]} Ng6 {[%clk 00:44:24]} {[%emt 00:31:01]} 18. Nb3 {[%clk
00:57:11]} {[%emt 00:09:02]} Qc7 {[%clk 00:31:03]} {[%emt 00:13:49]} 19. Na5
{[%clk 00:52:17]} {[%emt 00:05:26]} Ba8 {[%clk 00:30:34]} {[%emt 00:00:58]} 20.
bxc5 {[%clk 00:40:43]} {[%emt 00:12:04]} dxc5 {[%clk 00:30:07]} {[%emt
00:00:56]} 21. c4 {[%clk 00:39:06]} {[%emt 00:02:08]} b4 {[%clk 00:29:48]}
{[%emt 00:00:50]} 22. Bg5 {[%clk 00:37:24]} {[%emt 00:02:11]} Rd6 {[%clk
00:26:56]} {[%emt 00:03:21]} 23. Ba4 {[%clk 00:30:53]} {[%emt 00:07:01]} Red8
{[%clk 00:25:48]} {[%emt 00:01:38]} 24. Bb5 {[%clk 00:30:30]} {[%emt 00:00:54]}
h6 {[%clk 00:23:19]} {[%emt 00:02:59]} 25. Bd2 {[%clk 00:29:37]} {[%emt
00:01:23]} Nd7 {[%clk 00:20:31]} {[%emt 00:03:17]} 26. Qc2 {[%clk 00:26:00]}
{[%emt 00:04:08]} Ne7 {[%clk 00:18:01]} {[%emt 00:02:59]} 27. Qb2 {[%clk
00:21:58]} {[%emt 00:04:34]} f6 {[%clk 00:15:04]} {[%emt 00:03:26]} 28. Rec1
{[%clk 00:19:08]} {[%emt 00:03:20]} Kh7 {[%clk 00:12:33]} {[%emt 00:03:01]} 29.
Nb3 {[%clk 00:16:03]} {[%emt 00:03:35]} Rb6 {[%clk 00:11:51]} {[%emt 00:01:12]}
30. Ra5 {[%clk 00:15:17]} {[%emt 00:01:17]} Ng6 {[%clk 00:08:33]} {[%emt
00:03:47]} 31. Bxd7 {[%clk 00:10:43]} {[%emt 00:05:04]} Qxd7 {[%clk 00:08:49]}
{[%emt 00:00:14]} 32. Nxc5 {[%clk 00:10:18]} {[%emt 00:00:55]} Bxc5 {[%clk
00:07:23]} {[%emt 00:01:57]} 33. Rxc5 {[%clk 00:10:44]} {[%emt 00:00:04]} Nf4
{[%clk 00:07:32]} {[%emt 00:00:21]} 34. Bxf4 {[%clk 00:10:50]} {[%emt
00:00:24]} exf4 {[%clk 00:08:00]} {[%emt 00:00:02]} 35. Ra5 {[%clk 00:10:32]}
{[%emt 00:00:47]} Rbb8 {[%clk 00:07:20]} {[%emt 00:01:10]} 36. Nd4 {[%clk
00:09:28]} {[%emt 00:01:34]} Rdc8 {[%clk 00:05:40]} {[%emt 00:02:10]} 37. c5
{[%clk 00:08:42]} {[%emt 00:01:17]} Re8 {[%clk 00:04:10]} {[%emt 00:01:59]} 38.
f3 {[%clk 00:07:22]} {[%emt 00:01:50]} b3 {[%clk 00:01:48]} {[%emt 00:02:52]}
39. c6 {[%clk 00:06:08]} {[%emt 00:01:44]} Qd6 {[%clk 00:01:36]} {[%emt
00:00:41]} 40. Ra7 {[%clk 00:05:33]} {[%emt 00:01:06]} Rbc8 {[%clk 00:01:23]}
{[%emt 00:00:43]} 41. Nf5 {[%clk 00:05:14]} {[%emt 00:00:50]} Qf8 {[%clk
00:00:50]} {[%emt 00:01:01]} 42. Qxb3 {[%clk 00:05:02]} {[%emt 00:00:43]} Rb8
{[%clk 00:00:58]} {[%emt 00:00:22]} 43. Qc3 {[%clk 00:05:14]} {[%emt 00:00:18]}
Rbc8 {[%clk 00:00:45]} {[%emt 00:00:43]} 44. Rxg7+ {[%clk 00:05:35]} {[%emt
00:00:09]} Kh8 {[%clk 00:01:08]} {[%emt 00:00:07]} 45. Rd7 {[%clk 00:05:51]}
{[%emt 00:00:14]} Re5 {[%clk 00:01:16]} {[%emt 00:00:23]} 46. Ra1 {[%clk
00:06:00]} {[%emt 00:00:20]} Bxc6 {[%clk 00:01:21]} {[%emt 00:00:25]} 47. dxc6
{[%clk 00:06:08]} {[%emt 00:00:22]} Rc5 {[%clk 00:01:50]} {[%emt 00:00:01]} 48.
Qd4 {[%clk 00:06:11]} {[%emt 00:00:24]} R5xc6 {[%clk 00:02:12]} {[%emt
00:00:12]} 49. Raa7 {[%clk 00:06:16]} {[%emt 00:00:25]} Qg8 {[%clk 00:01:44]}
{[%emt 00:00:58]} 50. Rh7+ {[%clk 00:06:36]} {[%emt 00:00:09]} Qxh7 {[%clk
00:02:12]} {[%emt 00:00:02]} 51. Rxh7+ {[%clk 00:06:58]} {[%emt 00:00:08]} Kxh7
{[%clk 00:02:27]} {[%emt 00:00:15]} 52. Qd7+ {[%clk 00:07:26]} {[%emt
00:00:02]} 1-0